bitfinex-derivatives/quotes_SOLF0:USTF0_20251023
["timestamp","ask_amount","ask_price","bid_price","bid_amount"]
[1761229320046,2.68,189.01,188.85,4.63256105]
[1761229320239,2.68,189.0,188.8,80.74797369]
[1761229320443,2.68,189.0,188.83,4.63256105]
[1761229320755,2.68,189.0,188.91,4.763]
[1761229321252,2.68,189.0,188.86,4.63256105]
[1761229321848,2.68,189.0,188.89,4.63256105]
[1761229322148,36.5,189.02,188.89,4.63256105]
[1761229322353,36.5,189.02,188.86,62.0]
[1761229322354,36.5,189.02,188.93,4.63256105]
[1761229322554,2.68,189.04,188.93,4.63256105]
[1761229323548,2.68,189.08,188.93,4.63256105]
[1761229324744,2.68,189.05,188.93,4.63256105]
[1761229324945,2.68,189.05,188.92,4.63256105]
[1761229325353,2.68,189.05,188.96,4.63256105]
[1761229325654,45.66,189.09,188.96,4.63256105]
[1761229325847,2.68,189.08,188.96,4.63256105]
[1761229326053,2.68,189.07,188.95,4.63256105]
[1761229326457,2.68,189.07,188.96,62.0]
[1761229326956,7.4394,189.07,188.99,4.7611]
[1761229327454,7.4394,189.07,188.96,62.0]
[1761229328261,2.68,189.06,188.96,62.0]
[1761229328952,2.68,189.06,189.0,4.7608]
[1761229329757,50.4188,189.09,189.01,4.7606]
[1761229329958,53.0988,189.09,189.01,4.7606]
[1761229330256,2.68,189.08,189.01,4.7606]
[1761229330558,2.68,189.08,189.02,4.7603]
[1761229330754,2.68,189.08,188.95,4.63256105]
[1761229330955,2.68,189.13,189.06,4.7594]
[1761229331257,2.68,189.13,188.99,4.63256105]
[1761229331663,2.68,189.13,189.08,4.7587]
[1761229332163,2.68,189.13,188.99,50.27256105]
[1761229332461,2.68,189.13,189.0,62.0]
[1761229333061,4.7577,189.14,188.96,9.5238]
[1761229333062,2.68,189.14,188.96,14.15636105]
[1761229333364,2.68,189.14,189.03,4.7601]
[1761229333661,108.92322064,189.16,189.0,4.63256105]
[1761229333856,108.92322064,189.16,188.91,74.0925]
[1761229333857,2.68,189.15,188.98,4.63256105]
[1761229334058,2.68,189.13,188.98,4.63256105]
[1761229334255,2.68,189.12,188.93,9.5255]
[1761229334453,2.68,189.11,188.94,43.43256105]
[1761229334753,2.68,189.09,188.94,38.8]
[1761229334951,2.68,189.08,188.91,4.63256105]
[1761229335355,2.68,189.08,188.94,4.63256105]
[1761229335563,2.68,189.08,188.92,4.63256105]
[1761229336058,2.68,189.08,188.93,62.0]
[1761229336254,7.4397,189.06,188.99,4.7611]
[1761229337562,7.4397,189.06,188.97,4.7617]
[1761229337764,2.68,189.05,188.93,62.0]
[1761229338353,2.68,189.05,188.99,4.7611]
[1761229339061,2.68,189.05,189.0,4.7608]
[1761229339459,4.7586,189.1,189.01,4.7606]
[1761229339653,50.25256105,189.12,189.01,4.7606]
[1761229339654,2.68,189.09,189.01,4.7606]
[1761229339959,2.68,189.09,189.02,4.7603]
[1761229340163,45.62,189.12,188.96,4.63256105]
[1761229340352,2.68,189.11,188.96,4.63256105]
[1761229340557,2.68,189.11,188.95,4.63256105]
[1761229340753,2.68,189.1,188.95,4.63256105]
[1761229341358,2.68,189.1,189.05,4.7595]
[1761229341565,2.68,189.1,188.98,4.63256105]
[1761229342451,2.68,189.09,189.03,4.7602]
[1761229342763,2.68,189.09,188.85,0.14525]
[1761229342764,2.68,189.09,188.95,4.63256105]
[1761229343161,2.68,189.09,188.96,62.0]
[1761229343361,2.68,189.07,189.01,4.7606]
[1761229345458,2.82,189.12,188.96,62.0]
[1761229345662,2.82,189.12,188.99,4.63256105]
[1761229346054,2.82,189.11,188.99,4.63256105]
[1761229346367,2.82,189.11,189.07,4.7591]
[1761229347063,45.62,189.14,188.99,4.63256105]
[1761229347256,108.92322064,189.16,189.03,4.63256105]
[1761229347564,2.82,189.19,189.07,4.63256105]
[1761229347771,2.82,189.24,189.11,4.63256105]
[1761229348360,2.82,189.24,189.15,4.63256105]
[1761229348564,45.62,189.27,189.15,4.63256105]
[1761229348765,2.77,189.26,189.16,62.0]
[1761229349368,2.77,189.26,189.19,4.7561]
[1761229350470,2.77,189.26,189.17,4.7567]
[1761229350762,2.77,189.26,189.16,62.0]
[1761229351363,2.77,189.26,189.19,4.7562]
[1761229351770,2.77,189.26,189.16,62.0]
[1761229353264,2.77,189.3,189.16,62.0]
[1761229353674,2.77,189.3,189.18,4.63256105]
[1761229355370,2.77,189.3,189.22,4.63256105]
[1761229355564,2.77,189.38,189.22,4.63256105]
[1761229356163,2.77,189.38,189.28,4.7539]
[1761229357160,2.77,189.41,189.15,9.5144]
[1761229357364,2.77,189.41,189.25,4.63256105]
[1761229357767,2.77,189.39,189.29,4.7537]
[1761229358169,2.77,189.39,189.2,4.63256105]
[1761229358361,2.77,189.35,189.2,4.63256105]
[1761229358759,2.77,189.35,189.19,45.58]
[1761229358968,2.77,189.34,189.23,4.7551]
[1761229359574,2.77,189.34,189.18,7.58012161]
[1761229360073,2.77,189.34,189.26,4.7542]
[1761229361468,2.92,189.42,189.22,7.58012161]
[1761229361469,2.77,189.38,189.22,7.58012161]
[1761229361774,2.77,189.38,189.27,62.0]
[1761229362466,2.77,189.38,189.2,9.5118]
[1761229362467,2.77,189.38,189.2,45.56]
[1761229363062,4.7524,189.35,189.26,4.7544]
[1761229363274,2.77,189.34,189.2,45.56]
[1761229364077,2.77,189.34,189.24,4.7549]
[1761229364473,2.77,189.34,189.2,45.56]
[1761229364670,2.77,189.34,189.25,4.7545]
[1761229364977,2.77,189.34,189.2,45.56]
[1761229365177,2.77,189.34,189.25,4.7545]
[1761229365378,2.77,189.34,189.2,45.56]
[1761229365679,2.77,189.34,189.21,62.0]
[1761229366781,2.77,189.34,189.25,4.7544]
[1761229367977,2.77,189.34,189.19,7.58012161]
[1761229367978,2.77,189.33,189.11,76.93466259]
[1761229368169,2.77,189.33,189.13,7.58012161]
[1761229368870,2.77,189.27,189.13,7.58012161]
[1761229369069,2.77,189.27,189.11,122.47466259]
[1761229369274,2.77,189.25,189.11,122.47466259]
[1761229369976,2.77,189.25,189.16,4.7567]
[1761229370277,2.77,189.25,189.11,76.93466259]
[1761229370473,2.77,189.25,189.08,7.58012161]
[1761229371073,2.77,189.2,189.12,4.7578]
[1761229371273,2.77,189.2,189.17,0.20512]
[1761229371476,2.77,189.2,189.03,7.58012161]
[1761229371676,2.77,189.2,189.04,45.54]
[1761229371878,4.7567,189.18,189.09,4.7585]
[1761229372067,2.77,189.17,189.09,4.7585]
[1761229372274,2.77,189.17,189.04,45.54]
[1761229372882,15.88,189.22,189.03,7.58012161]
[1761229373077,2.77,189.19,189.03,7.58012161]
[1761229373383,2.77,189.13,189.05,4.7596]
[1761229373589,2.77,189.13,188.99,7.58012161]
[1761229373974,2.77,189.13,189.03,4.76]
[1761229374482,2.77,189.1,189.01,4.7607]
[1761229374883,2.77,189.1,189.0,62.0]
[1761229375583,2.77,189.1,189.0,69.58012161]
[1761229375776,2.77,189.19,189.0,69.58012161]
[1761229376380,2.77,189.17,189.04,7.58012161]
[1761229376982,2.77,189.17,189.08,4.7587]
[1761229377578,2.77,189.17,189.02,7.58012161]
[1761229378288,2.77,189.17,189.09,4.7587]
[1761229378492,2.77,189.17,189.02,7.58012161]
[1761229379091,2.77,189.17,189.06,7.58012161]
[1761229379387,48.23,189.21,189.06,53.14012161]
[1761229379587,48.23,189.21,189.13,4.7577]
[1761229379792,2.69,189.21,189.13,4.7577]
[1761229380177,2.69,189.21,189.1,7.58012161]
[1761229380374,2.69,189.29,189.1,7.58012161]
[1761229380880,2.69,189.25,189.1,7.58012161]
[1761229381685,2.69,189.25,189.11,62.0]
[1761229382083,2.69,189.25,189.16,4.7568]
[1761229382890,2.69,189.25,189.13,4.7575]
[1761229383086,2.69,189.25,189.11,62.0]
[1761229383385,2.69,189.25,189.05,7.58012161]
[1761229383590,7.58012161,189.26,189.1,4.7583]
[1761229383591,2.69,189.18,189.1,4.7583]
[1761229383792,2.69,189.18,189.04,45.54]
[1761229383989,2.69,189.18,188.96,6.47539667]
[1761229383990,2.69,189.1,188.96,7.58012161]
[1761229384290,2.69,189.1,188.93,53.12012161]
[1761229384489,7.58012161,189.14,188.93,53.12012161]
[1761229384490,2.69,189.13,188.93,53.12012161]
[1761229384880,2.69,189.13,188.97,7.58012161]
[1761229385188,2.69,189.13,188.85,96.61987029]
[1761229385189,2.69,189.09,188.91,7.58012161]
[1761229385381,2.69,189.09,188.9,7.58012161]
[1761229385583,2.69,189.0,188.91,4.7632]
[1761229386084,23.44012161,189.1,188.84,6.44]
[1761229386085,2.69,189.06,188.96,4.762]
[1761229386289,2.69,189.06,188.96,66.762]
[1761229386591,2.69,189.06,188.96,62.0]
[1761229386983,2.69,189.06,188.94,7.58012161]
[1761229387381,2.69,189.04,188.93,4.7627]
[1761229388188,4.7605,189.03,188.93,4.7627]
[1761229388391,2.69,189.03,188.94,4.7622]
[1761229388591,2.69,189.03,188.9,7.58012161]
[1761229388987,2.69,189.03,188.96,4.7618]
[1761229389195,2.69,189.08,188.94,7.58012161]
[1761229389990,2.69,189.08,188.95,62.0]
[1761229391704,2.69,189.13,189.02,4.7604]
[1761229392099,83.53870226,189.18,189.02,7.58012161]
[1761229392100,75.29870226,189.18,189.02,7.58012161]
[1761229392294,77.98870226,189.18,189.02,7.58012161]
[1761229392604,77.98870226,189.18,189.09,4.7587]
[1761229392904,77.98870226,189.18,189.02,7.58012161]
[1761229392905,2.69,189.17,188.99,7.58012161]
[1761229393203,2.69,189.14,188.99,7.58012161]
[1761229393808,2.69,189.14,189.04,4.7598]
[1761229394010,2.69,189.14,188.99,7.58012161]
[1761229394710,77.98870226,189.18,189.03,7.58012161]
[1761229395303,77.98870226,189.18,189.04,62.0]
[1761229395706,2.69,189.17,189.09,4.7585]
[1761229395906,2.69,189.17,189.04,62.0]
[1761229396296,2.69,189.17,189.06,4.7592]
[1761229396812,2.69,189.15,189.03,7.58012161]
[1761229397312,2.69,189.15,189.05,4.7595]
[1761229398710,2.69,189.15,189.06,4.7593]
[1761229400818,2.69,189.15,189.07,4.759]
[1761229401211,2.69,189.15,189.09,4.7586]
[1761229402111,2.69,189.15,189.04,62.0]
[1761229402112,2.69,189.2,189.04,62.0]
[1761229402612,2.69,189.2,189.07,7.58012161]
[1761229403316,45.56,189.22,189.07,7.58012161]
[1761229404514,45.56,189.22,189.16,4.7568]
[1761229404703,7.58012161,189.36,189.15,7.58012161]
[1761229404908,2.69,189.28,189.19,4.756]
[1761229405103,2.69,189.28,189.15,7.58012161]
[1761229406618,2.69,189.28,189.16,62.0]
[1761229406806,2.69,189.28,189.21,4.7555]
[1761229407010,2.69,189.28,189.16,62.0]
[1761229407212,2.7,189.35,189.19,7.58012161]
[1761229408020,2.7,189.35,189.28,4.7537]
[1761229408212,2.7,189.35,189.23,7.58012161]
[1761229409221,15.67707765,189.43,189.23,7.58012161]
[1761229409222,2.6,189.41,189.31,4.7531]
[1761229409723,2.6,189.41,189.33,4.7527]
[1761229410714,2.6,189.41,189.3,4.7532]
[1761229410920,2.6,189.47,189.32,7.58012161]
[1761229411111,2.6,189.47,189.34,7.58012161]
[1761229413124,2.6,189.47,189.35,4.7522]
[1761229413318,2.6,189.47,189.36,62.0]
[1761229413715,2.6,189.45,189.36,62.0]
[1761229413913,2.6,189.45,189.32,4.7528]
[1761229414617,2.6,189.43,189.32,4.7528]
[1761229415026,2.6,189.43,189.28,7.58012161]
[1761229415722,2.6,189.43,189.33,4.7527]
[1761229417428,2.6,189.43,189.35,4.7521]
[1761229417620,2.6,189.48,189.3,62.0]
[1761229418223,2.6,189.48,189.33,7.58012161]
[1761229418727,2.6,189.46,189.3,62.0]
[1761229419032,2.6,189.46,189.35,4.7521]
[1761229419532,2.6,189.46,189.3,62.0]
[1761229419828,2.6,189.46,189.37,4.7516]
[1761229420031,2.6,189.45,189.31,7.58012161]
[1761229420527,2.6,189.44,189.32,4.7527]
[1761229420832,2.6,189.4,189.24,4.60299396]
[1761229421426,2.6,189.4,189.3,4.7532]
[1761229421622,2.6,189.4,189.26,4.60299396]
[1761229422133,2.6,189.4,189.31,4.753]
[1761229422432,2.6,189.4,189.26,4.60299396]
[1761229422727,2.6,189.4,189.29,4.7535]
[1761229422937,2.6,189.4,189.26,4.60299396]
[1761229423635,2.6,189.4,189.32,4.7527]
[1761229424729,2.6,189.4,189.33,4.7524]
[1761229425129,2.6,189.4,189.3,4.60299396]
[1761229425436,2.6,189.4,189.35,4.7521]
[1761229426227,2.6,189.44,189.35,4.7521]
[1761229426432,2.6,189.44,189.37,4.7516]
[1761229426738,2.6,189.44,189.34,4.60299396]
[1761229427035,2.6,189.44,189.37,4.7517]
[1761229427634,2.6,189.44,189.38,4.7512]
[1761229428638,2.6,189.44,189.39,4.751]
[1761229432231,2.6,189.5,189.35,62.0]
[1761229432631,2.6,189.5,189.42,4.7502]
[1761229433044,2.6,189.48,189.35,62.0]
[1761229433337,2.6,189.48,189.4,4.7508]
[1761229434638,2.6,189.47,189.38,4.7514]
[1761229434827,2.6,189.47,189.34,45.48]
[1761229435242,2.6,189.47,189.36,4.60299396]
[1761229436742,2.6,189.47,189.41,4.7507]
[1761229436934,2.6,189.47,189.36,4.60299396]
[1761229437132,2.6,189.53,189.43,4.7501]
[1761229437442,2.6,189.53,189.34,54.9846]
[1761229437443,2.6,189.53,189.4,4.60299396]
[1761229437637,2.6,189.53,189.41,62.0]
[1761229438531,2.6,189.53,189.44,4.7499]
[1761229438733,2.6,189.53,189.4,4.60299396]
[1761229439935,2.6,189.53,189.44,4.60299396]
[1761229440635,2.6,189.53,189.42,4.60299396]
[1761229440829,2.6,189.53,189.4,45.46]
[1761229441443,2.6,189.53,189.45,4.7495]
[1761229441628,2.6,189.53,189.41,62.0]
[1761229441938,2.6,189.53,189.39,4.60299396]
[1761229442136,2.8,189.51,189.42,4.7502]
[1761229442333,2.8,189.51,189.39,4.60299396]
[1761229443933,2.8,189.5,189.43,4.75]
[1761229444135,2.8,189.5,189.36,45.46]
[1761229444335,2.8,189.44,189.3,4.60299396]
[1761229444833,2.8,189.44,189.3,66.60299396]
[1761229445541,2.8,189.44,189.35,4.752]
[1761229445843,2.8,189.44,189.3,66.60299396]
[1761229446045,2.8,189.43,189.37,4.7515]
[1761229446342,14.09859396,189.53,189.3,66.60299396]
[1761229446343,2.8,189.5,189.33,4.60299396]
[1761229446544,2.8,189.5,189.36,4.60299396]
[1761229446741,2.8,189.49,189.36,4.60299396]
[1761229447244,2.8,189.48,189.34,4.60299396]
[1761229447449,2.8,189.48,189.33,4.60299396]
[1761229447839,4.7494,189.47,189.33,4.60299396]
[1761229448136,2.8,189.46,189.33,4.60299396]
[1761229448341,2.8,189.46,189.39,4.751]
[1761229449040,2.8,189.46,189.33,4.60299396]
[1761229449345,2.8,189.46,189.32,4.60299396]
[1761229449537,2.8,189.45,189.38,4.7513]
[1761229449731,2.8,189.45,189.32,4.60299396]
[1761229449946,2.8,189.52,189.36,4.60299396]
[1761229450142,2.8,189.54,189.36,9.43700742]
[1761229450343,2.8,189.54,189.36,4.60299396]
[1761229450533,2.8,189.53,189.4,4.60299396]
[1761229450931,2.8,189.53,189.38,4.83401346]
[1761229451138,2.8,189.52,189.44,4.7499]
[1761229451539,2.8,189.52,189.39,4.60299396]
[1761229452335,2.8,189.57,189.43,4.60299396]
[1761229452651,2.8,189.56,189.47,4.749]
[1761229453239,2.8,189.56,189.48,4.7488]
[1761229453440,4.7471,189.56,189.48,4.7488]
[1761229453642,2.8,189.55,189.44,62.0]
[1761229453841,2.8,189.55,189.39,4.83401346]
[1761229454445,2.8,189.55,189.44,4.7498]
[1761229454953,2.8,189.55,189.4,4.83401346]
[1761229455144,2.8,189.55,189.39,4.83401346]
[1761229455654,2.8,189.55,189.4,4.83401346]
[1761229455850,2.8,189.55,189.39,4.83401346]
[1761229456044,2.8,189.52,189.39,4.83401346]
[1761229456546,2.8,189.51,189.43,4.7501]
[1761229456951,2.8,189.51,189.4,62.0]
[1761229456952,2.8,189.51,189.39,4.83401346]
[1761229457152,2.8,189.51,189.38,9.43700742]
[1761229457647,4.60299396,189.56,189.34,4.83401346]
[1761229457648,2.8,189.49,189.34,4.83401346]
[1761229457861,2.8,189.47,189.32,4.83401346]
[1761229458040,2.8,189.43,189.31,4.83401346]
[1761229458358,2.8,189.42,189.3,9.43700742]
[1761229458740,2.8,189.42,189.31,4.83401346]
[1761229458940,4.7506,189.42,189.34,4.7522]
[1761229459140,2.8,189.41,189.34,4.7522]
[1761229459755,2.8,189.41,189.35,4.752]
[1761229460048,2.8,189.46,189.32,66.83401346]
[1761229460247,2.8,189.46,189.33,4.83401346]
[1761229460451,2.8,189.46,189.33,9.43700742]
[1761229460650,2.8,189.46,189.35,4.83401346]
[1761229460955,2.8,189.46,189.34,4.7523]
[1761229461248,2.8,189.45,189.34,4.83401346]
[1761229461453,2.8,189.5,189.4,4.7508]
[1761229461852,4.7488,189.49,189.4,4.7508]
[1761229462155,4.7488,189.49,189.36,4.83401346]
[1761229462156,2.8,189.48,189.38,4.7514]
[1761229462349,2.8,189.48,189.36,4.83401346]
[1761229462855,2.8,189.48,189.36,9.43700742]
[1761229463456,2.8,189.48,189.42,4.7503]
[1761229464153,2.8,189.48,189.43,4.75]
[1761229465351,2.8,189.48,189.38,4.83401346]
[1761229466053,2.8,189.48,189.44,4.7498]
[1761229466355,2.8,189.52,189.4,9.43700742]
[1761229468054,2.8,189.51,189.45,4.7495]
[1761229468358,2.8,189.51,189.41,4.83401346]
[1761229468848,2.86,189.5,189.43,4.75]
[1761229469550,2.86,189.49,189.43,4.75]
[1761229469751,2.86,189.49,189.44,4.7498]
[1761229470449,7.608,189.52,189.45,4.7495]
[1761229470650,2.86,189.51,189.45,4.7495]
[1761229470853,2.86,189.5,189.4,4.83401346]
[1761229471248,2.86,189.5,189.43,4.7501]
[1761229471448,2.86,189.5,189.41,4.83401346]
[1761229471449,2.86,189.5,189.39,4.83401346]
[1761229471646,2.86,189.47,189.38,4.83401346]
[1761229471853,2.86,189.47,189.33,9.6957951]
[1761229471854,4.7506,189.42,189.33,4.83401346]
[1761229472050,2.86,189.41,189.33,4.83401346]
[1761229473052,2.86,189.41,189.35,4.752]
[1761229473757,2.86,189.41,189.32,4.83401346]
[1761229474064,2.86,189.39,189.28,4.83401346]
[1761229474251,2.86,189.39,189.3,4.60299396]
[1761229474456,2.86,189.39,189.3,9.43700742]
[1761229474651,2.86,189.39,189.3,4.83401346]
[1761229474953,2.86,189.39,189.29,9.58761346]
[1761229475166,2.86,189.39,189.29,4.7536]
[1761229475548,7.6112,189.39,189.29,4.7536]
[1761229475750,2.86,189.38,189.29,4.7536]
[1761229475952,2.86,189.38,189.3,4.7532]
[1761229476155,2.86,189.38,189.29,4.83401346]
[1761229476657,2.86,189.38,189.28,4.60299396]
[1761229476658,2.86,189.38,189.28,9.43700742]
[1761229476860,2.86,189.38,189.29,4.83401346]
[1761229477254,4.60299396,189.53,189.29,4.83401346]
[1761229477255,2.86,189.42,189.32,4.7527]
[1761229477557,2.86,189.42,189.29,4.60299396]
[1761229477751,2.86,189.4,189.29,4.60299396]
[1761229478554,2.86,189.38,189.31,4.753]
[1761229478757,2.86,189.38,189.27,4.83401346]
[1761229479253,2.86,189.38,189.3,4.7533]
[1761229479954,2.86,189.38,189.31,4.753]
[1761229480762,2.86,189.38,189.29,4.7536]
[1761229481059,2.86,189.38,189.26,4.83401346]
[1761229481262,2.86,189.38,189.25,66.83401346]
[1761229481964,7.6121,189.36,189.25,66.83401346]
[1761229482156,2.86,189.35,189.25,62.0]
[1761229482553,4.70928074,189.51,189.36,4.60299396]
[1761229482761,20.54379235,189.63,189.43,7.56301228]
[1761229483060,20.54379235,189.63,189.49,4.7487]
[1761229483061,4.7459,189.61,189.49,4.7487]
[1761229483265,14.46,189.64,189.47,7.56301228]
[1761229483664,45.42,189.64,189.47,7.56301228]
[1761229484361,45.42,189.64,189.51,4.7482]
[1761229484554,2.86,189.63,189.51,4.7482]
[1761229484762,152.08,189.67,189.47,7.56301228]
[1761229484763,2.86,189.61,189.53,4.7476]
[1761229485154,2.86,189.61,189.5,4.7482]
[1761229485360,2.86,189.66,189.51,7.56301228]
[1761229485572,2.86,189.66,189.56,7.56301228]
[1761229486169,152.08,189.67,189.5,4.83401346]
[1761229486170,152.08,189.67,189.6,7.56301228]
[1761229486468,152.08,189.67,189.63,4.7451]
[1761229486860,2.86,189.7,189.59,7.56301228]
[1761229487257,2.86,189.7,189.55,7.56301228]
[1761229487258,2.86,189.69,189.55,7.56301228]
[1761229487661,2.86,189.66,189.55,7.56301228]
[1761229488162,45.42,189.65,189.55,7.56301228]
[1761229488670,45.42,189.65,189.53,4.7476]
[1761229488671,48.28,189.65,189.53,4.7476]
[1761229488970,2.86,189.64,189.54,62.0]
[1761229489363,2.86,189.64,189.55,4.7471]
[1761229489557,45.4,189.63,189.55,4.7471]
[1761229489965,2.86,189.62,189.52,12.31081228]
[1761229490569,45.4,189.61,189.52,12.31081228]
[1761229490870,45.4,189.6,189.52,12.31081228]
[1761229491366,2.86,189.62,189.52,7.56301228]
[1761229491669,5.58,189.61,189.52,7.56301228]
[1761229491871,2.72,189.6,189.52,7.56301228]
[1761229492066,5.58,189.6,189.52,7.56301228]
[1761229495069,2.86,189.6,189.52,7.56301228]
[1761229495267,8.84,189.59,189.52,7.56301228]
[1761229495971,2.86,189.66,189.52,7.56301228]
[1761229496171,2.86,189.64,189.52,7.56301228]
[1761229496672,2.86,189.62,189.52,7.56301228]
[1761229497781,2.86,189.62,189.52,12.31071228]
[1761229498171,18.52,189.61,189.52,12.31071228]
[1761229498470,18.52,189.61,189.49,62.0]
[1761229498661,2.86,189.6,189.51,7.56301228]
[1761229499875,2.86,189.6,189.53,4.7476]
[1761229500173,2.86,189.6,189.51,7.56301228]
[1761229500376,18.52,189.61,189.43,6.47539667]
[1761229500377,2.84,189.56,189.43,7.56301228]
[1761229501163,2.84,189.54,189.45,4.7496]
[1761229501475,4.7472,189.55,189.38,6.47539667]
[1761229501476,2.84,189.63,189.47,7.56301228]
[1761229501679,2.84,189.59,189.49,4.7487]
[1761229501978,2.84,189.57,189.47,7.56301228]
[1761229502673,45.38,189.56,189.47,7.56301228]
[1761229503272,45.38,189.56,189.47,69.56301228]
[1761229503775,45.38,189.56,189.48,4.7489]
[1761229506675,2.84,189.55,189.47,7.56301228]
[1761229506877,2.84,189.55,189.39,4.83401346]
[1761229507068,2.84,189.55,189.36,7.56301228]
[1761229507269,2.84,189.46,189.33,4.83401346]
[1761229507484,2.84,189.46,189.32,7.56301228]
[1761229507485,2.84,189.44,189.32,12.39702574]
[1761229507775,6.36,189.43,189.32,12.39702574]
[1761229508077,9.2,189.43,189.32,7.56301228]
[1761229508266,2.84,189.42,189.32,7.56301228]
[1761229508473,2.84,189.4,189.28,12.39702574]
[1761229508868,2.84,189.4,189.33,4.7525]
[1761229509073,2.84,189.38,189.29,62.0]
[1761229509381,12.84,189.37,189.29,62.0]
[1761229509573,15.68,189.37,189.26,4.83401346]
[1761229509771,2.84,189.36,189.25,7.56301228]
[1761229510074,4.7524,189.35,189.25,7.56301228]
[1761229510279,7.5924,189.35,189.25,7.56301228]
[1761229510873,2.84,189.34,189.22,7.56301228]
[1761229511074,2.84,189.34,189.25,4.7545]
[1761229511573,2.84,189.34,189.23,4.7552]
[1761229513374,2.84,189.32,189.23,4.7552]
[1761229513785,2.84,189.32,189.21,4.7557]
[1761229514087,2.84,189.3,189.18,7.56301228]
[1761229514384,2.84,189.3,189.21,4.7557]
[1761229514881,2.84,189.28,189.14,113.95906818]
[1761229515178,2.84,189.28,189.09,4.83401346]
[1761229515381,2.84,189.26,189.13,4.7576]
[1761229515586,2.84,189.25,189.09,7.56301228]
[1761229515972,2.84,189.23,189.09,7.56301228]
[1761229516883,25.02,189.22,189.1,62.0]
[1761229517680,2.84,189.28,189.13,7.56301228]
[1761229517987,2.84,189.26,189.07,4.83401346]
[1761229518188,2.84,189.25,189.16,4.7568]
[1761229518487,2.84,189.25,189.13,7.56301228]
[1761229518683,2.84,189.25,189.18,4.7562]
[1761229518988,2.84,189.25,189.13,7.56301228]
[1761229519288,2.84,189.25,189.17,4.7567]
[1761229520183,2.84,189.25,189.14,4.7573]
[1761229520388,2.84,189.25,189.13,7.56301228]
[1761229520791,2.84,189.25,189.16,4.7569]
[1761229521889,2.84,189.29,189.18,4.7564]
[1761229522087,13.64,189.28,189.18,4.7564]
[1761229522287,10.8,189.28,189.18,4.7564]
[1761229522492,2.84,189.27,189.18,4.7564]
[1761229523588,2.84,189.27,189.17,7.56301228]
[1761229523789,14.46,189.27,189.17,7.56301228]
[1761229523986,2.84,189.26,189.14,69.56301228]
[1761229524685,2.84,189.26,189.16,4.7569]
[1761229525087,2.84,189.26,189.14,69.56301228]
[1761229525695,15.86,189.34,189.14,69.56301228]
[1761229525696,2.69,189.31,189.14,69.56301228]
[1761229525884,2.69,189.31,189.18,7.56301228]
[1761229526685,2.69,189.3,189.18,7.56301228]
[1761229526990,2.69,189.3,189.14,69.56301228]
[1761229527592,4.7537,189.3,189.19,4.756]
[1761229527792,2.69,189.29,189.14,69.56301228]
[1761229527988,32.79,189.29,189.14,69.56301228]
[1761229528501,2.69,189.29,189.21,4.7555]
[1761229528996,2.69,189.29,189.22,4.7552]
[1761229529293,2.69,189.29,189.18,7.56301228]